[Event "Fagernes GM Open Autumn 2024"]
[Site "Fagernes"]
[Date "2024.10.11"]
[Round "7.19"]
[White "Kanyamarala, Trisha"]
[Black "Sieber, Fiona"]
[Result "1-0"]
[ECO "E12"]
[WhiteElo "2160"]
[BlackElo "2264"]
[Annotator "RC"]
[PlyCount "75"]
[EventDate "2024.10.03"]
[EventType "swiss"]
[EventCountry "NOR"]
[SourceTitle "playchess.com"]
[Source "ChessBase"]
[SourceQuality "1"]
[TimeControl "40/6000:2400+30"]

1. d4 {[%emt 0:00:00]} Nf6 {[%emt 0:00:00]} 2. c4 {[%emt 0:00:00]} e6 {[%emt 0:00:00]} 3. Nf3 {[%emt 0:00:00]} b6 {[%emt 0:00:00]} 4. a3 {[%emt 0:00:00]} Bb7 {[%emt 0:00:00]} 5. Nc3 {[%emt 0:00:00]} d5 {[%emt 0:00:00]} 6. cxd5 {[%emt 0:00:00]} Nxd5 {[%emt 0:00:00]} 7. Qc2 {[%emt 0:00:00]} Be7 {[%emt 0:08:18]} 8. e4 {[%emt 0:00:00]} Nxc3 {[%emt 0:00:00]} 9. bxc3 {[%emt 0:00:00]} O-O {[%emt 0:00:00]} 10. Bd3 {[%emt 0:00:00]} c5 {[%emt 0:00:00]} 11. O-O {[%emt 0:00:00]} Qc7 {[%emt 0:01:43]} 12. Qe2 {[%emt 0:00:00]} Rd8 {[%emt 0:03:54]} 13. Re1 {[%emt 0:00:00]} Nc6 {[%emt 0:09:50]} 14. d5 {[%emt 0:00:00]} exd5 {[%emt 0:11:35]} 15. exd5 {[%emt 0:00:00]} Rxd5 {[%emt 0:00:00]} 16. Ng5 {[%emt 0:00:00]} Re5 {[%emt 0:14:33]} 17. Bxh7+ {[%emt 0:01:04]} Kf8 {[%emt 0:00:00]} 18. Ne4 {[%emt 0:02:00]} f5 {[%emt 0:02:57]} 19. Qc4 {[%emt 0:28:34]} Bf6 {[%emt 0:00:26]} 20. Bg5 {[%emt 0:01:12]} Qf7 {[%emt 0:12:15]} 21. Qxf7+ {[%emt 0:04:04]} Kxf7 {[%emt 0:00:00]} 22. Nd6+ {[%emt 0:01:22]} Ke6 {[%emt 0:00:00]} 23. Bxf6 {[%emt 0:09:20]} Kxf6 {[%emt 0:00:00]} 24. Rxe5 {[%emt 0:06:01]} Nxe5 {[%emt 0:00:00]} 25. Bxf5 {[%emt 0:03:44]} Ba6 {[%emt 0:06:01]} 26. Bc2 {[%emt 0:12:06]} Rd8 {[%emt 0:06:50]} 27. Ne4+ {[%emt 0:00:00]} Ke6 {[%emt 0:00:18]} 28. Re1 {[%emt 0:02:50]} Rf8 {[%emt 0:06:21]} 29. Ng5+ {[%emt 0:07:17]} Kd5 {[%emt 0:01:01]} 30. Re4 {[%emt 0:06:25]} Nd3 {[%emt 0:05:39]} 31. f3 {[%emt 0:07:07]} Nc1 {[%emt 0:01:24]} 32. Ra4 {[%emt 0:01:33]} Bb5 {[%emt 0:01:08]} 33. c4+ {[%emt 0:01:33]} Bxc4 {[%emt 0:01:49]} 34. Be4+ {[%emt 0:00:00]} Kd6 {[%emt 0:00:23]} 35. Rxc4 {[%emt 0:00:00]} Ne2+ {[%emt 0:00:00]} 36. Kf2 {[%emt 0:00:00]} Nd4 {[%emt 0:00:00]} 37. Bd3 {[%emt 0:01:03]} b5 {[%emt 0:00:00]} 38. Ne4+ {[%emt 0:00:00]} 1-0

[Event "Fagernes GM Open Autumn 2024"]
[Site "Fagernes"]
[Date "2024.10.11"]
[Round "7.20"]
[White "Aamodt, Peder Marcus"]
[Black "Skotheim, Andreas"]
[Result "1/2-1/2"]
[ECO "C79"]
[WhiteElo "2126"]
[BlackElo "2234"]
[Annotator "RC"]
[PlyCount "33"]
[EventDate "2024.10.03"]
[EventType "swiss"]
[EventCountry "NOR"]
[SourceTitle "playchess.com"]
[Source "ChessBase"]
[SourceQuality "1"]
[TimeControl "40/6000:2400+30"]

1. e4 {[%emt 0:00:10]} e5 {[%emt 0:00:00]} 2. Nf3 {[%emt 0:00:04]} Nc6 {[%emt 0:00:00]} 3. Bb5 {[%emt 0:00:00]} a6 {[%emt 0:00:00]} 4. Ba4 {[%emt 0:00:00]} Nf6 {[%emt 0:00:00]} 5. O-O {[%emt 0:00:00]} d6 {[%emt 0:00:00]} 6. Re1 {[%emt 0:00:00]} Bd7 {[%emt 0:00:00]} 7. Bxc6 {[%emt 0:00:00]} Bxc6 {[%emt 0:02:33]} 8. d4 {[%emt 0:00:00]} Be7 {[%emt 0:09:27]} 9. Nc3 {[%emt 0:00:00]} exd4 {[%emt 0:08:38]} 10. Nxd4 {[%emt 0:00:00]} O-O {[%emt 0:06:04]} 11. Nxc6 {[%emt 0:00:00]} bxc6 {[%emt 0:00:00]} 12. f4 {[%emt 0:00:00]} Re8 {[%emt 0:09:13]} 13. Be3 {[%emt 0:00:05]} Bf8 {[%emt 0:05:13]} 14. Qf3 {[%emt 0:02:23]} Qb8 {[%emt 0:01:20]} 15. Rab1 {[%emt 0:39:10]} c5 {[%emt 0:06:21]} 16. Bf2 {[%emt 0:02:21]} Qb7 {[%emt 0:02:57]} 17. e5 {[%emt 0:01:55]} 1/2-1/2

[Event "Fagernes GM Open Autumn 2024"]
[Site "Fagernes"]
[Date "2024.10.11"]
[Round "7.21"]
[White "Welling, Gerard"]
[Black "Southcott-Moyers, Indy"]
[Result "1/2-1/2"]
[ECO "D05"]
[WhiteElo "2206"]
[BlackElo "2143"]
[Annotator "RC"]
[PlyCount "61"]
[EventDate "2024.10.03"]
[EventType "swiss"]
[EventCountry "NOR"]
[SourceTitle "playchess.com"]
[Source "ChessBase"]
[SourceQuality "1"]
[TimeControl "40/6000:2400+30"]

1. Nf3 {[%emt 0:00:00]} d5 {[%emt 0:00:00]} 2. e3 {[%emt 0:00:00]} Nf6 {[%emt 0:00:00]} 3. d4 {[%emt 0:00:00]} c5 {[%emt 0:00:30]} 4. c3 {[%emt 0:00:00]} Nbd7 {[%emt 0:00:00]} 5. Nbd2 {[%emt 0:00:00]} g6 {[%emt 0:01:06]} 6. Be2 {[%emt 0:02:21]} Bg7 {[%emt 0:00:41]} 7. O-O {[%emt 0:00:00]} O-O {[%emt 0:02:01]} 8. b3 {[%emt 0:01:42]} b6 {[%emt 0:04:43]} 9. Bb2 {[%emt 0:00:00]} Bb7 {[%emt 0:00:12]} 10. Rc1 {[%emt 0:05:01]} Ne4 {[%emt 0:14:18]} 11. c4 {[%emt 0:03:23]} cxd4 {[%emt 0:14:40]} 12. Bxd4 {[%emt 0:05:23]} Nxd2 {[%emt 0:09:29]} 13. Qxd2 {[%emt 0:00:37]} e5 {[%emt 0:00:38]} 14. Bb2 {[%emt 0:02:37]} dxc4 {[%emt 0:01:21]} 15. Bxc4 {[%emt 0:07:28]} Bxf3 {[%emt 0:02:42]} 16. gxf3 {[%emt 0:00:06]} Qg5+ {[%emt 0:00:57]} 17. Kh1 {[%emt 0:00:00]} Rad8 {[%emt 0:00:13]} 18. Qe2 {[%emt 0:02:18]} Qe7 {[%emt 0:04:55]} 19. Bb5 {[%emt 0:09:59]} Nc5 {[%emt 0:02:53]} 20. Ba3 {[%emt 0:00:32]} e4 {[%emt 0:05:45]} 21. Bxc5 {[%emt 0:02:01]} bxc5 {[%emt 0:00:11]} 22. Rfd1 {[%emt 0:02:28]} exf3 {[%emt 0:01:36]} 23. Qxf3 {[%emt 0:00:48]} Rxd1+ {[%emt 0:04:16]} 24. Rxd1 {[%emt 0:00:00]} Rd8 {[%emt 0:00:00]} 25. Rxd8+ {[%emt 0:00:00]} Qxd8 {[%emt 0:00:00]} 26. Bc4 {[%emt 0:00:00]} Qc7 {[%emt 0:00:00]} 27. Kg2 {[%emt 0:00:00]} Bf8 {[%emt 0:00:00]} 28. h3 {[%emt 0:01:07]} Kg7 {[%emt 0:00:00]} 29. a4 {[%emt 0:00:07]} a5 {[%emt 0:00:00]} 30. Qd5 {[%emt 0:00:58]} Bd6 {[%emt 0:01:34]} 31. Kf1 {[%emt 0:07:55]} 1/2-1/2

[Event "Fagernes GM Open Autumn 2024"]
[Site "Fagernes"]
[Date "2024.10.11"]
[Round "7.22"]
[White "Harish, Neeraj"]
[Black "Westrum, Kim Roger Hansen"]
[Result "1/2-1/2"]
[ECO "C54"]
[WhiteElo "2024"]
[BlackElo "2205"]
[Annotator "RC"]
[PlyCount "75"]
[EventDate "2024.10.03"]
[EventType "swiss"]
[EventCountry "NOR"]
[SourceTitle "playchess.com"]
[Source "ChessBase"]
[SourceQuality "1"]
[TimeControl "40/6000:2400+30"]

1. e4 {[%emt 0:00:00]} e5 {[%emt 0:01:03]} 2. Nf3 {[%emt 0:00:00]} Nc6 {[%emt 0:00:00]} 3. Bc4 {[%emt 0:00:00]} Nf6 {[%emt 0:00:00]} 4. d3 {[%emt 0:00:00]} Bc5 {[%emt 0:00:00]} 5. O-O {[%emt 0:00:00]} d6 {[%emt 0:00:13]} 6. c3 {[%emt 0:00:00]} h6 {[%emt 0:00:04]} 7. Re1 {[%emt 0:00:00]} O-O {[%emt 0:00:00]} 8. h3 {[%emt 0:00:00]} a5 {[%emt 0:00:00]} 9. d4 {[%emt 0:00:00]} Bb6 {[%emt 0:03:56]} 10. Bb3 {[%emt 0:00:00]} Re8 {[%emt 0:13:47]} 11. Bc2 {[%emt 0:00:00]} exd4 {[%emt 0:00:04]} 12. cxd4 {[%emt 0:00:00]} Nb4 {[%emt 0:00:00]} 13. Nc3 {[%emt 0:00:00]} Nxc2 {[%emt 0:00:00]} 14. Qxc2 {[%emt 0:00:00]} c6 {[%emt 0:01:37]} 15. Bf4 {[%emt 0:08:33]} Be6 {[%emt 0:02:43]} 16. Rad1 {[%emt 0:00:47]} d5 {[%emt 0:02:26]} 17. e5 {[%emt 0:00:46]} Ne4 {[%emt 0:00:37]} 18. Nd2 {[%emt 0:16:28]} Ng5 {[%emt 0:15:12]} 19. h4 {[%emt 0:10:52]} Nh7 {[%emt 0:01:30]} 20. Nf3 {[%emt 0:00:00]} Bg4 {[%emt 0:00:00]} 21. Bg3 {[%emt 0:00:02]} Nf8 {[%emt 0:05:45]} 22. Qd3 {[%emt 0:06:12]} Ng6 {[%emt 0:05:10]} 23. Ne2 {[%emt 0:03:35]} Bxf3 {[%emt 0:01:18]} 24. Qxf3 {[%emt 0:00:00]} Nxh4 {[%emt 0:00:00]} 25. Qg4 {[%emt 0:00:00]} Ng6 {[%emt 0:00:00]} 26. Nf4 {[%emt 0:11:32]} Nxf4 {[%emt 0:00:01]} 27. Bxf4 {[%emt 0:00:00]} Re6 {[%emt 0:00:18]} 28. Re3 {[%emt 0:01:28]} Rg6 {[%emt 0:09:26]} 29. Qh3 {[%emt 0:03:37]} Qc8 {[%emt 0:01:51]} 30. Qxc8+ {[%emt 0:01:10]} Rxc8 {[%emt 0:00:00]} 31. Rb3 {[%emt 0:00:00]} c5 {[%emt 0:00:53]} 32. dxc5 {[%emt 0:00:00]} Rxc5 {[%emt 0:00:08]} 33. Be3 {[%emt 0:00:00]} Rcc6 {[%emt 0:00:00]} 34. Rxd5 {[%emt 0:06:46]} Bxe3 {[%emt 0:00:23]} 35. Rxe3 {[%emt 0:00:00]} Rc1+ {[%emt 0:00:25]} 36. Kh2 {[%emt 0:00:00]} Rc2 {[%emt 0:00:28]} 37. Rf3 {[%emt 0:00:00]} Rxb2 {[%emt 0:03:44]} 38. Rxa5 {[%emt 0:04:46]} 1/2-1/2

[Event "Fagernes GM Open Autumn 2024"]
[Site "Fagernes"]
[Date "2024.10.11"]
[Round "7.23"]
[White "Soham Datar"]
[Black "Gaikwad, Siddhant"]
[Result "1/2-1/2"]
[ECO "C51"]
[WhiteElo "2188"]
[BlackElo "2039"]
[Annotator "RC"]
[PlyCount "49"]
[EventDate "2024.10.03"]
[EventType "swiss"]
[EventCountry "NOR"]
[SourceTitle "playchess.com"]
[Source "ChessBase"]
[SourceQuality "1"]
[TimeControl "40/6000:2400+30"]

1. e4 {[%emt 0:00:00]} e5 {[%emt 0:00:00]} 2. Nf3 {[%emt 0:00:00]} Nc6 {[%emt 0:00:00]} 3. Bc4 {[%emt 0:00:00]} Bc5 {[%emt 0:00:00]} 4. b4 {[%emt 0:00:00]} Bxb4 {[%emt 0:02:37]} 5. c3 {[%emt 0:00:29]} Bd6 {[%emt 0:00:00]} 6. O-O {[%emt 0:00:00]} Qf6 {[%emt 0:00:00]} 7. d4 {[%emt 0:00:00]} Nge7 {[%emt 0:00:13]} 8. Ng5 {[%emt 0:08:43]} O-O {[%emt 0:05:58]} 9. f4 {[%emt 0:01:46]} exf4 {[%emt 0:02:34]} 10. Nf3 {[%emt 0:06:24]} Ng6 {[%emt 0:05:38]} 11. e5 {[%emt 0:00:06]} Ngxe5 {[%emt 0:00:00]} 12. dxe5 {[%emt 0:00:00]} Nxe5 {[%emt 0:00:00]} 13. Nxe5 {[%emt 0:00:00]} Bxe5 {[%emt 0:00:00]} 14. Qf3 {[%emt 0:00:00]} b5 {[%emt 0:07:04]} 15. Qxa8 {[%emt 0:06:36]} Qb6+ {[%emt 0:00:00]} 16. Rf2 {[%emt 0:02:12]} c6 {[%emt 0:00:05]} 17. Bxb5 {[%emt 0:13:10]} Bb7 {[%emt 0:05:41]} 18. Qxf8+ {[%emt 0:00:03]} Kxf8 {[%emt 0:00:00]} 19. Bf1 {[%emt 0:00:00]} f3 {[%emt 0:01:48]} 20. g3 {[%emt 0:00:04]} Qc7 {[%emt 0:00:43]} 21. Be3 {[%emt 0:00:01]} Bxg3 {[%emt 0:02:22]} 22. hxg3 {[%emt 0:00:00]} Qxg3+ {[%emt 0:00:00]} 23. Kh1 {[%emt 0:00:00]} Qh4+ {[%emt 0:00:00]} 24. Kg1 {[%emt 0:00:00]} Qg3+ {[%emt 0:00:00]} 25. Kh1 {[%emt 0:00:00]} 1/2-1/2

[Event "Fagernes GM Open Autumn 2024"]
[Site "Fagernes"]
[Date "2024.10.11"]
[Round "7.24"]
[White "Eliseev, Sergey"]
[Black "Kaewpitakkun, Pantham"]
[Result "0-1"]
[ECO "B84"]
[WhiteElo "2276"]
[BlackElo "2023"]
[Annotator "RC"]
[PlyCount "48"]
[EventDate "2024.10.03"]
[EventType "swiss"]
[EventCountry "NOR"]
[SourceTitle "playchess.com"]
[Source "ChessBase"]
[SourceQuality "1"]
[TimeControl "40/6000:2400+30"]

1. e4 {[%emt 0:08:33]} c5 {[%emt 0:00:00]} 2. Nf3 {[%emt 0:00:00]} d6 {[%emt 0:00:00]} 3. d4 {[%emt 0:00:00]} cxd4 {[%emt 0:00:00]} 4. Nxd4 {[%emt 0:00:00]} Nf6 {[%emt 0:00:00]} 5. Nc3 {[%emt 0:00:00]} a6 {[%emt 0:00:00]} 6. Be3 {[%emt 0:00:00]} e6 {[%emt 0:00:00]} 7. Be2 {[%emt 0:00:00]} Be7 {[%emt 0:00:00]} 8. f4 {[%emt 0:00:00]} Qc7 {[%emt 0:03:53]} 9. Qd3 {[%emt 0:03:00]} b5 {[%emt 0:03:25]} 10. Bf3 {[%emt 0:06:13]} Bb7 {[%emt 0:01:09]} 11. e5 {[%emt 0:16:37]} dxe5 {[%emt 0:04:26]} 12. Ncxb5 {[%emt 0:00:00]} axb5 {[%emt 0:08:27]} 13. Qxb5+ {[%emt 0:16:32]} Nbd7 {[%emt 0:05:23]} 14. Qxb7 {[%emt 0:00:21]} Qxb7 {[%emt 0:00:57]} 15. Bxb7 {[%emt 0:00:00]} Rb8 {[%emt 0:00:07]} 16. fxe5 {[%emt 0:00:00]} Ng4 {[%emt 0:00:16]} 17. Bc6 {[%emt 0:01:38]} Nxe3 {[%emt 0:02:27]} 18. a4 {[%emt 0:00:00]} Bc5 {[%emt 0:01:59]} 19. Nb3 {[%emt 0:01:19]} Nxc2+ {[%emt 0:04:20]} 20. Kd2 {[%emt 0:00:00]} Nxa1 {[%emt 0:00:22]} 21. Bxd7+ {[%emt 0:00:00]} Kxd7 {[%emt 0:00:08]} 22. Nxc5+ {[%emt 0:00:00]} Kc6 {[%emt 0:00:04]} 23. Rc1 {[%emt 0:00:16]} Kd5 {[%emt 0:01:14]} 24. b4 {[%emt 0:00:24]} Rxb4 {[%emt 0:00:33]} 0-1

[Event "Fagernes GM Open Autumn 2024"]
[Site "Fagernes"]
[Date "2024.10.11"]
[Round "7.25"]
[White "Bjorkan, Olav"]
[Black "Nagare Akhilesh"]
[Result "0-1"]
[ECO "E90"]
[WhiteElo "2022"]
[BlackElo "2245"]
[Annotator "RC"]
[PlyCount "76"]
[EventDate "2024.10.03"]
[EventType "swiss"]
[EventCountry "NOR"]
[SourceTitle "playchess.com"]
[Source "ChessBase"]
[SourceQuality "1"]
[TimeControl "40/6000:2400+30"]

1. d4 {[%emt 0:00:00]} Nf6 {[%emt 0:02:40]} 2. Nf3 {[%emt 0:00:00]} g6 {[%emt 0:00:00]} 3. c4 {[%emt 0:00:00]} Bg7 {[%emt 0:00:00]} 4. Nc3 {[%emt 0:00:00]} d6 {[%emt 0:00:00]} 5. e4 {[%emt 0:00:00]} O-O {[%emt 0:00:00]} 6. h3 {[%emt 0:00:00]} Nbd7 {[%emt 0:06:43]} 7. Be3 {[%emt 0:00:00]} a5 {[%emt 0:06:04]} 8. g4 {[%emt 0:03:20]} a4 {[%emt 0:04:32]} 9. g5 {[%emt 0:33:29]} Nh5 {[%emt 0:00:00]} 10. Nxa4 {[%emt 0:02:14]} c5 {[%emt 0:00:00]} 11. Nc3 {[%emt 0:01:14]} Qa5 {[%emt 0:01:43]} 12. Be2 {[%emt 0:10:30]} cxd4 {[%emt 0:14:01]} 13. Nxd4 {[%emt 0:01:33]} Nc5 {[%emt 0:02:14]} 14. Qd2 {[%emt 0:05:43]} f5 {[%emt 0:26:47]} 15. exf5 {[%emt 0:10:05]} Bxf5 {[%emt 0:03:16]} 16. Nxf5 {[%emt 0:07:50]} Rxf5 {[%emt 0:00:00]} 17. Nd5 {[%emt 0:04:23]} Qd8 {[%emt 0:01:25]} 18. Bg4 {[%emt 0:13:25]} Nb3 {[%emt 0:02:29]} 19. Qd1 {[%emt 0:01:35]} Nxa1 {[%emt 0:00:00]} 20. Bxf5 {[%emt 0:00:00]} gxf5 {[%emt 0:00:00]} 21. Qxa1 {[%emt 0:00:52]} e6 {[%emt 0:01:58]} 22. Nb6 {[%emt 0:01:03]} Ra6 {[%emt 0:00:00]} 23. Qd1 {[%emt 0:00:00]} f4 {[%emt 0:00:22]} 24. Bc1 {[%emt 0:00:36]} Qxg5 {[%emt 0:01:24]} 25. Nd7 {[%emt 0:00:55]} Qg2 {[%emt 0:12:23]} 26. Qxh5 {[%emt 0:00:00]} Qxh1+ {[%emt 0:00:00]} 27. Kd2 {[%emt 0:00:00]} Ra8 {[%emt 0:00:00]} 28. Qg4 {[%emt 0:00:00]} Kh8 {[%emt 0:00:00]} 29. Qxe6 {[%emt 0:00:00]} Qf1 {[%emt 0:01:42]} 30. Kc2 {[%emt 0:00:00]} Qxf2+ {[%emt 0:00:19]} 31. Kb1 {[%emt 0:00:00]} Qd4 {[%emt 0:00:00]} 32. Qf5 {[%emt 0:00:00]} Rd8 {[%emt 0:03:34]} 33. Qa5 {[%emt 0:00:00]} b6 {[%emt 0:01:12]} 34. Nxb6 {[%emt 0:00:14]} Rb8 {[%emt 0:03:12]} 35. Na4 {[%emt 0:00:07]} Qd3+ {[%emt 0:00:08]} 36. Ka1 {[%emt 0:00:00]} Qc2 {[%emt 0:00:00]} 37. Qd2 {[%emt 0:00:19]} Qxa4 {[%emt 0:00:00]} 38. Qxd6 {[%emt 0:00:00]} Ra8 {[%emt 0:00:00]} 0-1

[Event "Fagernes GM Open Autumn 2024"]
[Site "Fagernes"]
[Date "2024.10.11"]
[Round "7.26"]
[White "Advaitt Srikant Koduri"]
[Black "Stromhaug, Kristoffer Wang"]
[Result "1-0"]
[ECO "D02"]
[WhiteElo "2162"]
[BlackElo "1960"]
[Annotator "RC"]
[PlyCount "73"]
[EventDate "2024.10.03"]
[EventType "swiss"]
[EventCountry "NOR"]
[SourceTitle "playchess.com"]
[Source "ChessBase"]
[SourceQuality "1"]
[TimeControl "40/6000:2400+30"]

1. d4 {[%emt 0:00:34]} Nf6 {[%emt 0:00:00]} 2. Nf3 {[%emt 0:00:00]} e6 {[%emt 0:00:00]} 3. Bf4 {[%emt 0:00:00]} d5 {[%emt 0:00:00]} 4. e3 {[%emt 0:00:06]} c5 {[%emt 0:00:00]} 5. c3 {[%emt 0:00:19]} Bd6 {[%emt 0:00:00]} 6. Bg3 {[%emt 0:01:04]} O-O {[%emt 0:00:00]} 7. Nbd2 {[%emt 0:00:00]} Qc7 {[%emt 0:00:00]} 8. dxc5 {[%emt 0:03:11]} Qxc5 {[%emt 0:13:21]} 9. Bd3 {[%emt 0:00:00]} Bxg3 {[%emt 0:02:21]} 10. hxg3 {[%emt 0:00:00]} h6 {[%emt 0:00:00]} 11. Qa4 {[%emt 0:09:55]} Nc6 {[%emt 0:04:04]} 12. Qf4 {[%emt 0:10:17]} Qe7 {[%emt 0:04:07]} 13. Ne5 {[%emt 0:19:48]} Nxe5 {[%emt 0:05:46]} 14. Qxe5 {[%emt 0:00:00]} Nd7 {[%emt 0:03:54]} 15. Qh5 {[%emt 0:00:54]} e5 {[%emt 0:06:40]} 16. O-O-O {[%emt 0:03:05]} Nf6 {[%emt 0:09:41]} 17. Qh4 {[%emt 0:00:13]} Be6 {[%emt 0:03:35]} 18. Kb1 {[%emt 0:00:07]} Rab8 {[%emt 0:07:13]} 19. f3 {[%emt 0:03:21]} Qc7 {[%emt 0:01:48]} 20. g4 {[%emt 0:02:59]} e4 {[%emt 0:03:08]} 21. Bc2 {[%emt 0:01:45]} Nh7 {[%emt 0:05:41]} 22. f4 {[%emt 0:03:27]} f6 {[%emt 0:00:55]} 23. Nb3 {[%emt 0:01:01]} Qc8 {[%emt 0:00:34]} 24. f5 {[%emt 0:01:37]} Bf7 {[%emt 0:00:00]} 25. Nd4 {[%emt 0:00:14]} b5 {[%emt 0:01:55]} 26. Bb3 {[%emt 0:00:11]} Rd8 {[%emt 0:01:57]} 27. Qg3 {[%emt 0:00:00]} a5 {[%emt 0:00:55]} 28. Ne6 {[%emt 0:01:51]} Bxe6 {[%emt 0:01:14]} 29. fxe6 {[%emt 0:00:00]} Ng5 {[%emt 0:00:00]} 30. Rxd5 {[%emt 0:01:48]} Re8 {[%emt 0:00:08]} 31. Rd7 {[%emt 0:06:10]} a4 {[%emt 0:01:21]} 32. Bd5 {[%emt 0:00:00]} Rb6 {[%emt 0:03:01]} 33. Rd1 {[%emt 0:11:27]} Kh8 {[%emt 0:01:08]} 34. Qf4 {[%emt 0:00:22]} Nxe6 {[%emt 0:05:18]} 35. Bxe6 {[%emt 0:00:00]} Rbxe6 {[%emt 0:00:00]} 36. Rc7 {[%emt 0:00:00]} Qa6 {[%emt 0:01:55]} 37. Rdd7 {[%emt 0:02:28]} 1-0

[Event "Fagernes GM Open Autumn 2024"]
[Site "Fagernes"]
[Date "2024.10.11"]
[Round "7.27"]
[White "Lien, Sebastian"]
[Black "Mannion, Stephen R"]
[Result "1/2-1/2"]
[ECO "D27"]
[WhiteElo "1911"]
[BlackElo "2142"]
[Annotator "RC"]
[PlyCount "39"]
[EventDate "2024.10.03"]
[EventType "swiss"]
[EventCountry "NOR"]
[SourceTitle "playchess.com"]
[Source "ChessBase"]
[SourceQuality "1"]
[TimeControl "40/6000:2400+30"]

1. d4 {[%emt 0:00:00]} d5 {[%emt 0:03:12]} 2. c4 {[%emt 0:00:00]} dxc4 {[%emt 0:00:00]} 3. e3 {[%emt 0:00:00]} Nf6 {[%emt 0:00:00]} 4. Bxc4 {[%emt 0:00:00]} e6 {[%emt 0:00:00]} 5. Nf3 {[%emt 0:00:00]} c5 {[%emt 0:00:00]} 6. O-O {[%emt 0:00:00]} a6 {[%emt 0:00:00]} 7. Nbd2 {[%emt 0:00:00]} cxd4 {[%emt 0:00:00]} 8. Nxd4 {[%emt 0:00:00]} Bc5 {[%emt 0:00:00]} 9. N2f3 {[%emt 0:17:18]} O-O {[%emt 0:00:14]} 10. a3 {[%emt 0:01:13]} b5 {[%emt 0:17:37]} 11. Ba2 {[%emt 0:04:59]} Bb7 {[%emt 0:00:06]} 12. b4 {[%emt 0:00:00]} Be7 {[%emt 0:01:17]} 13. Bb2 {[%emt 0:00:00]} Nc6 {[%emt 0:07:04]} 14. Rc1 {[%emt 0:07:40]} Nxd4 {[%emt 0:07:11]} 15. Nxd4 {[%emt 0:04:11]} Qb6 {[%emt 0:05:11]} 16. Qe2 {[%emt 0:02:16]} Rac8 {[%emt 0:02:06]} 17. Bb1 {[%emt 0:02:28]} Rxc1 {[%emt 0:16:02]} 18. Rxc1 {[%emt 0:00:44]} Rc8 {[%emt 0:00:00]} 19. Rxc8+ {[%emt 0:01:49]} Bxc8 {[%emt 0:00:00]} 20. Nb3 {[%emt 0:02:00]} 1/2-1/2

[Event "Fagernes GM Open Autumn 2024"]
[Site "Fagernes"]
[Date "2024.10.11"]
[Round "7.28"]
[White "Sorgjerd, Jan"]
[Black "Kittilsen, Sigurd"]
[Result "0-1"]
[ECO "D20"]
[WhiteElo "1966"]
[BlackElo "1981"]
[Annotator "RC"]
[PlyCount "82"]
[EventDate "2024.10.03"]
[EventType "swiss"]
[EventCountry "NOR"]
[SourceTitle "playchess.com"]
[Source "ChessBase"]
[SourceQuality "1"]
[TimeControl "40/6000:2400+30"]

1. d4 {[%emt 0:00:00]} d5 {[%emt 0:00:00]} 2. c4 {[%emt 0:00:00]} dxc4 {[%emt 0:00:00]} 3. Nc3 {[%emt 0:00:00]} a6 {[%emt 0:00:00]} 4. a4 {[%emt 0:00:00]} e5 {[%emt 0:00:00]} 5. d5 {[%emt 0:02:12]} Bb4 {[%emt 0:00:01]} 6. e4 {[%emt 0:01:10]} Qh4 {[%emt 0:00:42]} 7. Nf3 {[%emt 0:06:19]} Qxe4+ {[%emt 0:01:37]} 8. Qe2 {[%emt 0:01:25]} Qxe2+ {[%emt 0:21:08]} 9. Bxe2 {[%emt 0:00:00]} e4 {[%emt 0:05:05]} 10. Nd4 {[%emt 0:14:16]} Nd7 {[%emt 0:03:13]} 11. Bxc4 {[%emt 0:15:40]} Nb6 {[%emt 0:02:39]} 12. Bb3 {[%emt 0:00:00]} Nf6 {[%emt 0:01:03]} 13. O-O {[%emt 0:00:10]} O-O {[%emt 0:05:41]} 14. Nde2 {[%emt 0:04:13]} Bg4 {[%emt 0:05:25]} 15. f3 {[%emt 0:04:13]} exf3 {[%emt 0:04:13]} 16. gxf3 {[%emt 0:00:26]} Bh3 {[%emt 0:02:22]} 17. Rd1 {[%emt 0:00:00]} Bc5+ {[%emt 0:01:51]} 18. Kh1 {[%emt 0:00:00]} Nbd7 {[%emt 0:01:58]} 19. Bc2 {[%emt 0:08:09]} Ne5 {[%emt 0:03:18]} 20. Nf4 {[%emt 0:03:20]} Bd7 {[%emt 0:00:22]} 21. Nd3 {[%emt 0:06:33]} Bd6 {[%emt 0:02:49]} 22. Nxe5 {[%emt 0:04:11]} Bxe5 {[%emt 0:00:00]} 23. Re1 {[%emt 0:00:00]} Rfe8 {[%emt 0:04:30]} 24. Be4 {[%emt 0:03:47]} Nxe4 {[%emt 0:05:20]} 25. fxe4 {[%emt 0:04:46]} f5 {[%emt 0:00:09]} 26. Bd2 {[%emt 0:01:30]} fxe4 {[%emt 0:00:59]} 27. Rxe4 {[%emt 0:05:27]} c6 {[%emt 0:02:40]} 28. Rae1 {[%emt 0:01:08]} Bd6 {[%emt 0:07:00]} 29. Rxe8+ {[%emt 0:01:18]} Rxe8 {[%emt 0:00:32]} 30. Rxe8+ {[%emt 0:00:00]} Bxe8 {[%emt 0:00:00]} 31. dxc6 {[%emt 0:00:27]} Bxc6+ {[%emt 0:00:07]} 32. Kg1 {[%emt 0:00:00]} Bb4 {[%emt 0:01:12]} 33. Kf2 {[%emt 0:04:15]} Bxa4 {[%emt 0:03:00]} 34. Nxa4 {[%emt 0:01:21]} Bxd2 {[%emt 0:00:00]} 35. Nc5 {[%emt 0:00:00]} b6 {[%emt 0:00:53]} 36. Nxa6 {[%emt 0:00:00]} Bf4 {[%emt 0:00:00]} 37. h3 {[%emt 0:00:00]} Bd6 {[%emt 0:00:00]} 38. Kf3 {[%emt 0:00:00]} Kf7 {[%emt 0:00:00]} 39. Ke4 {[%emt 0:00:00]} Ke6 {[%emt 0:00:00]} 40. b4 {[%emt 0:00:10]} g5 {[%emt 0:00:35]} 41. b5 {[%emt 0:42:26]} h5 {[%emt 0:44:28]} 0-1

[Event "Fagernes GM Open Autumn 2024"]
[Site "Fagernes"]
[Date "2024.10.11"]
[Round "7.29"]
[White "Simonsen, David Mindestrommen"]
[Black "Hetland, Even"]
[Result "1-0"]
[ECO "C02"]
[WhiteElo "1930"]
[BlackElo "1970"]
[Annotator "RC"]
[PlyCount "53"]
[EventDate "2024.10.03"]
[EventType "swiss"]
[EventCountry "NOR"]
[SourceTitle "playchess.com"]
[Source "ChessBase"]
[SourceQuality "1"]
[TimeControl "40/6000:2400+30"]

1. e4 {[%emt 0:00:00]} e6 {[%emt 0:00:00]} 2. d4 {[%emt 0:00:00]} d5 {[%emt 0:00:00]} 3. e5 {[%emt 0:00:00]} c5 {[%emt 0:00:00]} 4. c3 {[%emt 0:00:00]} Nc6 {[%emt 0:00:00]} 5. Nf3 {[%emt 0:00:00]} Bd7 {[%emt 0:00:00]} 6. Be2 {[%emt 0:00:00]} Nge7 {[%emt 0:00:00]} 7. Na3 {[%emt 0:00:00]} cxd4 {[%emt 0:00:00]} 8. cxd4 {[%emt 0:00:00]} Nf5 {[%emt 0:00:00]} 9. Nc2 {[%emt 0:00:00]} Qb6 {[%emt 0:00:00]} 10. O-O {[%emt 0:00:00]} Na5 {[%emt 0:00:00]} 11. Bd3 {[%emt 0:13:40]} Bb5 {[%emt 0:05:19]} 12. Ne3 {[%emt 0:02:46]} Nxe3 {[%emt 0:05:46]} 13. fxe3 {[%emt 0:00:06]} Bxd3 {[%emt 0:09:40]} 14. Qxd3 {[%emt 0:00:00]} Be7 {[%emt 0:02:10]} 15. Bd2 {[%emt 0:06:30]} Nc6 {[%emt 0:01:52]} 16. h4 {[%emt 0:03:58]} f6 {[%emt 0:21:07]} 17. exf6 {[%emt 0:01:01]} gxf6 {[%emt 0:00:00]} 18. e4 {[%emt 0:02:30]} O-O-O {[%emt 0:02:18]} 19. Rae1 {[%emt 0:07:12]} dxe4 {[%emt 0:08:47]} 20. Qxe4 {[%emt 0:00:00]} Nxd4 {[%emt 0:03:48]} 21. Be3 {[%emt 0:00:48]} Bc5 {[%emt 0:07:15]} 22. Rc1 {[%emt 0:07:54]} Ne2+ {[%emt 0:06:01]} 23. Kf2 {[%emt 0:00:00]} Nxc1 {[%emt 0:00:05]} 24. Rxc1 {[%emt 0:00:00]} Kb8 {[%emt 0:01:16]} 25. Rxc5 {[%emt 0:00:05]} Qxb2+ {[%emt 0:00:53]} 26. Rc2 {[%emt 0:02:48]} Qb1 {[%emt 0:01:44]} 27. Rc8+ {[%emt 0:00:38]} 1-0